Cogmind - Beta 9.2 @@@ ROGUE MODE // 2019.11.15 @ 15:19:28 Player: Alexbot Result: Destroyed by G-34 Mercenary with Small Laser Performance ------------- Evolutions (0) 0 Regions Visited (4) 800 Robots Destroyed (9) 45 Value Destroyed (197) 197 Prototype IDs (22) 440 Alien Tech Used (0) 0 Bonus (300) 300 TOTAL SCORE: 1782 Bonus ------- Aligned with FarCom 300 Cogmind --------- Core Integrity 0/250 Matter 67/300 Energy 250/250 System Corruption 0% Temperature Cool (18) Movement Core (750) Ox14 Location -9/Mines Parts ------- > --- POWER (1) -------- Ion Engine > --- PROPULSION (2) --- (None) > --- UTILITY (2) ------ Large Storage Unit Large Storage Unit > --- WEAPON (2) ------- Autogun Autogun > --- INVENTORY (16) --- Ion Engine Light Treads Light Treads Armored Wheel Large Storage Unit Firepult Peak State ------------ > --- POWER ------------ Ion Engine > --- PROPULSION ------- Wheel Compact Wheel > --- UTILITY ---------- Large Storage Unit Large Storage Unit > --- WEAPON ----------- Autogun Autogun > --- INVENTORY -------- Ion Engine Light Treads Light Treads Armored Wheel Large Storage Unit Firepult Autogun Autogun [Rating: 12] Favorites ----------- Power Ion Engine Engine Ion Engine Propulsion Compact Wheel Wheel Compact Wheel Utility Large Storage Unit Storage Large Storage Unit Weapon Autogun Energy Gun EM Pulse Gun Ballistic Gun Autogun Build | -11 -10 -10 -10 -9 ------- Run | Scr Mat Min Exi Min Slots Evolved . | . . . . . Power . | . . . . . Propulsion . | . . . . . Utility . | . . . . . Weapon . | . . . . . Parts Attached 12 | 6 2 . 2 2 Power 1 | 1 . . . . Engine 1 | 1 . . . . Core . | . . . . . Reactor . | . . . . . Propulsion 2 | 2 . . . . Treads . | . . . . . Leg . | . . . . . Wheel 2 | 2 . . . . Hover . | . . . . . Flight . | . . . . . Utility 3 | 1 . . 2 . Device . | . . . . . Storage 3 | 1 . . 2 . Processor . | . . . . . Hackware . | . . . . . Protection . | . . . . . Artifact . | . . . . . Weapon 6 | 2 2 . . 2 Energy Gun 2 | 2 . . . . Energy Cannon . | . . . . . Ballistic Gun 4 | . 2 . . 2 Ballistic Cannon . | . . . . . Launcher . | . . . . . Special Weapon . | . . . . . Impact Weapon . | . . . . . Slashing Weapon . | . . . . . Piercing Weapon . | . . . . . Special Melee Weapon . | . . . . . Unidentified Prototypes . | . . . . . Parts Lost 4 | . . . . 4 Power . | . . . . . Propulsion 2 | . . . . 2 Utility . | . . . . . Weapon 2 | . . . . 2 Highest Loss Streak 3 | . . . . 3 Average Slot Usage (%) 94 | . 82 85 91 99 Engine 14 | . 14 14 14 14 Wheel 27 | . 28 28 28 27 Storage 23 | . 14 14 20 28 Ballistic Gun 27 | . 25 28 28 28 Naked Turns . | . . . . . Heaviest Build 43 | 12 15 15 43 43 Greatest Support 26 | 26 26 26 26 26 Greatest Overweight (x) 2 | . . . 1 2 Average Overweight (x) . | . . . . 1 Largest Inventory Capacity 16 | 6 6 6 16 16 Average Capacity 12 | 5 6 6 10 16 Most Carried 9 | 4 6 6 9 9 Average Carried 7 | 1 5 6 6 8 Final Capacity 16 | 6 6 6 16 16 Final Carried 9 | 4 6 6 9 7 Class Distribution -------------------- 100% | Mutant Dominant Class ---------------- Mutant | -10/Materials Mutant | -10/Mines Mutant | -10/Exiles Mutant | -9/Mines Resources | -11 -10 -10 -10 -9 ----------- Run | Scr Mat Min Exi Min Matter Collected 390 | 243 . 15 . 132 Remotely . | . . . . . Salvage Created 251 | . . 58 . 193 Parts 18 | . . 1 . 17 Haulers Intercepted . | . . . . . Recyclers Shooed . | . . . . . Parts Field Recycled . | . . . . . Retrieved Matter . | . . . . . Parts Self-Destructed . | . . . . . Prevented . | . . . . . Kills | -11 -10 -10 -10 -9 ------- Run | Scr Mat Min Exi Min Combat Hostiles Destroyed 7 | . . 1 . 6 Guns 7 | . . 1 . 6 Classes Destroyed 5 | . . 1 . 4 Builder 1 | . . . . 1 Tunneler 1 | . . . . 1 Grunt 4 | . . 1 . 3 Brawler 1 | . . . . 1 Assembled 2 | . . . . 2 Best Kill Streak 6 | . . 1 . 6 Combat Bots Only 3 | . . 1 . 3 Max Kills in Single Turn 1 | . . 1 . 1 Gunslinging . | . . . . . Exploded . | . . . . . Melee . | . . . . . Uniques/NPCs Destroyed . | . . . . . Combat | -11 -10 -10 -10 -9 -------- Run | Scr Mat Min Exi Min Damage Taken 792 | . . 328 . 464 Core 253 | . . 152 . 101 Absorbed by Shields . | . . . . . Core Remaining (%) 100 | 100 . . . . Volleys Fired 41 | . . 8 . 33 Largest 2 | . . 2 . 2 Hottest 46 | . . 46 . 46 Shots Fired 82 | . . 16 . 66 Gun 82 | . . 16 . 66 Cannon . | . . . . . Launcher . | . . . . . Special . | . . . . . Kinetic 82 | . . 16 . 66 Thermal . | . . . . . Explosive . | . . . . . Electromagnetic . | . . . . . Robot Hit Streak 6 | . . 4 . 6 Robot Miss Streak 5 | . . 1 . 5 Penetration Max . | . . . . . Secondary Targets 3 | . . . . 3 Max Gunslinging Chain 1 | . . . . 1 Shots Hit Robots 46 | . . 10 . 36 Core Hits 17 | . . 4 . 13 Critical Hits 1 | . . 1 . . Critical Kills . | . . . . . Critical Parts Destroyed 1 | . . 1 . . Melee Attacks . | . . . . . Impact . | . . . . . Slashing . | . . . . . Piercing . | . . . . . Sneak Attacks . | . . . . . Combat Hostiles . | . . . . . Follow-up Attacks . | . . . . . Damage Inflicted 686 | . . 161 . 525 Guns 679 | . . 161 . 518 Cannons . | . . . . . Explosions . | . . . . . Melee . | . . . . . Ramming 7 | . . . . 7 Kinetic 679 | . . 161 . 518 Thermal . | . . . . . Explosive . | . . . . . Electromagnetic . | . . . . . Impact . | . . . . . Slashing . | . . . . . Piercing . | . . . . . Highest Corruption . | . . . . . Average Corruption . | . . . . . Corruption Purged . | . . . . . Overload Shots . | . . . . . Overflow Damage . | . . . . . Projectiles . | . . . . . Explosions . | . . . . . Melee . | . . . . . Knockbacks . | . . . . . Impact . | . . . . . Kinetic . | . . . . . Secondary . | . . . . . Self-Inflicted Damage 3 | . . . . 3 Shots . | . . . . . Rammed 1 | . . . . 1 Targets Rammed 1 | . . . . 1 Kicked . | . . . . . Crushed . | . . . . . Highest Temperature 304 | . . 28 . 304 Average Temperature 86 | . . 8 . 102 Received Heat Transfer 560 | . . 42 . 518 Siege Activations . | . . . . . Robots Corrupted . | . . . . . Combat Hostiles . | . . . . . Parts Fried . | . . . . . Impact Corruptions . | . . . . . Robots Melted . | . . . . . Combat Hostiles . | . . . . . Parts Melted . | . . . . . Heat Transferred . | . . . . . Parts Sabotaged . | . . . . . Parts Stolen . | . . . . . Parts Stripped . | . . . . . Power Chain Reactions . | . . . . . Missiles Intercepted . | . . . . . Alert | -11 -10 -10 -10 -9 ------- Run | Scr Mat Min Exi Min Peak Influence 75 | . 15 35 . 75 Average Influence 9 | . 1 14 . 9 Maximum Alert Level . | . . . . . Low Security (%) 100 | 100 100 100 . 100 Level 1 . | . . . . . Level 2 . | . . . . . Level 3 . | . . . . . Level 4 . | . . . . . Level 5 . | . . . . . High Security . | . . . . . Max Security . | . . . . . Squads Dispatched . | . . . . . Investigation . | . . . . . Extermination . | . . . . . Reinforcement . | . . . . . Assault . | . . . . . Garrison . | . . . . . Intercept . | . . . . . Construction Impeded . | . . . . . Haulers Reinforced . | . . . . . Stealth | -11 -10 -10 -10 -9 --------- Run | Scr Mat Min Exi Min Distress Signals . | . . . . . Communications Jammed . | . . . . . Distress Signals . | . . . . . Times Spotted 15 | . 1 5 . 9 Peak Tracking Total 5 | . 2 5 . 5 Tactical Retreats 3 | . . 1 . 2 Traps | -11 -10 -10 -10 -9 ------- Run | Scr Mat Min Exi Min Traps Triggered . | . . . . . Indirectly . | . . . . . Trap Hack Attempts . | . . . . . Triggered . | . . . . . Disarmed . | . . . . . Reprogrammed . | . . . . . Reused . | . . . . . Traps Extracted . | . . . . . Installed . | . . . . . Triggered . | . . . . . Machines | -11 -10 -10 -10 -9 ---------- Run | Scr Mat Min Exi Min Machines Disabled . | . . . . . Max in Single Turn . | . . . . . Machines Sabotaged . | . . . . . Garrisons Compromised . | . . . . . Overloaded Fab Kills . | . . . . . Fab Network Shutdowns . | . . . . . Hacking | -11 -10 -10 -10 -9 --------- Run | Scr Mat Min Exi Min Machines Accessed 2 | . . . 2 . Terminals . | . . . . . Fabricators . | . . . . . Repair Stations . | . . . . . Recycling Units . | . . . . . Scanalyzers . | . . . . . Garrison Access . | . . . . . Total Hacks 2 | . . . 2 . Successful 2 | . . . 2 . Failed . | . . . . . Catastrophic . | . . . . . Database Lockouts . | . . . . . Manual 1 | . . . 1 . Terminals . | . . . . . Fabricators . | . . . . . Repair Stations . | . . . . . Recycling Units . | . . . . . Scanalyzers . | . . . . . Garrison Access . | . . . . . Terminal Hacks 2 | . . . 2 . Record 1 | . . . 1 . EX-Prototype ID Bank 1 | . . . 1 . Fabricator Hacks . | . . . . . Repair Station Hacks . | . . . . . Recycling Unit Hacks . | . . . . . Scanalyzer . | . . . . . Garrison Access Hacks . | . . . . . Unauthorized Hacks . | . . . . . Terminals . | . . . . . Fabricators . | . . . . . Repair Stations . | . . . . . Recycling Units . | . . . . . Scanalyzers . | . . . . . Garrison Access . | . . . . . Data Cores Recovered . | . . . . . Used . | . . . . . Hacking Detections . | . . . . . Full Trace Events . | . . . . . Feedback Events . | . . . . . Feedback Blocked . | . . . . . Robot Schematics Acquired . | . . . . . Robots Built . | . . . . . Matter . | . . . . . Time . | . . . . . Total Robot Build Rating . | . . . . . Part Schematics Acquired . | . . . . . Parts Built . | . . . . . Matter . | . . . . . Time . | . . . . . Total Part Build Rating . | . . . . . Parts Repaired . | . . . . . Time . | . . . . . Parts Recycled . | . . . . . Recycled Matter . | . . . . . Retrieved Matter . | . . . . . Retrieved Components . | . . . . . Parts Scanalyzed . | . . . . . Part Schematics Acquired . | . . . . . Parts Damaged . | . . . . . Bothacking | -11 -10 -10 -10 -9 ------------ Run | Scr Mat Min Exi Min Used RIF Installer . | . . . . . Robots Hacked . | . . . . . Non-combat . | . . . . . Combat . | . . . . . Robot Hacks Applied . | . . . . . Relay Couplers Released . | . . . . . Robots Rewired . | . . . . . Allies Hacked . | . . . . . Hacks Repelled . | . . . . . Allies | -11 -10 -10 -10 -9 -------- Run | Scr Mat Min Exi Min Total Allies . | . . . . . Largest Group . | . . . . . Highest-Rated Group . | . . . . . Highest-Rated Ally . | . . . . . Total Orders . | . . . . . Ally Attacks . | . . . . . Total Damage . | . . . . . Kills . | . . . . . Allies Corrupted . | . . . . . Allies Melted . | . . . . . Intel | -11 -10 -10 -10 -9 ------- Run | Scr Mat Min Exi Min Robot Analysis Total . | . . . . . Derelict Logs Recovered 2 | . . 1 . 1 Drone Launches . | . . . . . Drone Recoveries . | . . . . . Exploration | -11 -10 -10 -10 -9 ------------- Run | Scr Mat Min Exi Min Turns Passed 1255 | 51 54 103 423 624 Spaces Moved 862 | 42 51 85 442 242 Core 2 | 2 . . . . Treads . | . . . . . Legs . | . . . . . Wheels 860 | 40 51 85 442 242 Hover . | . . . . . Flight . | . . . . . Fastest Speed 50 | 50 90 90 90 100 Average Speed 95 | 87 90 90 94 100 Slowest Speed 120 | 90 90 90 100 120 Overloaded Moves . | . . . . . Propulsion Burnouts . | . . . . . Robots Hopped . | . . . . . Cave-ins Triggered . | . . . . . Exploration Rate (%) 30 | 3 20 24 70 37 Regions Visited 4 Branch Regions 3 Pre-discovered Areas 1 | . . . . 1 Known Exits Taken 1 | . . . 1 . Unknown Exits Taken 3 | 1 1 1 . . Scrap Searched . | . . . . . Spaces Dug . | . . . . . Terrain Destroyed . | . . . . . Melee . | . . . . . Projectile . | . . . . . AOE . | . . . . . Actions | -11 -10 -10 -10 -9 --------- Run | Scr Mat Min Exi Min Total 1227 | 53 60 98 446 570 Wait 299 | 2 . 5 . 292 Move 858 | 41 50 84 441 242 Hop . | . . . . . Pick Up 9 | 4 3 . 2 . Fast Attach 9 | 6 2 . 1 . Attach 2 | . . . . 2 Detach 2 | . 2 . . . Swap 1 | . . . 1 . Drop 4 | . 3 . 1 . Fire 41 | . . 8 . 33 Melee . | . . . . . Ram 1 | . . . . 1 Kick . | . . . . . Crush . | . . . . . Escape Stasis . | . . . . . Rewire 1 | . . 1 . . Trap . | . . . . . Miscellaneous . | . . . . . Route ------- -11/Scrapyard -10/Materials -10/Mines -10/Exiles (discovered 2 exits: *Min x2) -9/Mines History --------- Turn | Location | Event 25 | -11/Scrapyard | Discovered new exit (range 16) 52 | -11/Scrapyard | Entered Materials 100 | -10/Materials | Discovered new exit (range 8) 106 | -10/Materials | Entered Mines 133 | -10/Mines | Assembled infested the area 167 | -10/Mines | Core integrity fell below 50% 173 | -10/Mines | Met 8R-AWN 203 | -10/Mines | Discovered new exit (range 5) 209 | -10/Mines | Entered Exiles 210 | -10/Exiles | Identified exit to Mines 231 | -10/Exiles | Welcomed by 8R-AWN 245 | -10/Exiles | Met EX-HEX 272 | -10/Exiles | Met EX-BIN 286 | -10/Exiles | Aligned with FarCom system 287 | -10/Exiles | Given EX-Vault access code 309 | -10/Exiles | Opened EX-Vault 310 | -10/Exiles | Build established: Mutant 334 | -10/Exiles | Warned to stay clear of 0b10 Research branches 395 | -10/Exiles | Met EX-DEC 526 | -10/Exiles | Found Firepult 632 | -10/Exiles | Left Exiles lab with Firepult 632 | -10/Exiles | Entered Mines 657 | -9/Mines | Learned location of Zion (-7) 866 | -9/Mines | Excavation squad dispatched 866 | -9/Mines | A large section of the Mines collapsed 1116 | -9/Mines | Excavation squad dispatched 1198 | -9/Mines | Core integrity fell below 20% 1256 | -9/Mines | Destroyed by G-34 Mercenary with Small Laser Last Messages --------------- 01116_ ALERT: Derelict activity in mines confirmed. Dispatching additional escorted excavation squad. 01206_ G-34 Mercenary destroyed. 01223_ B-36 Bruiser destroyed. 01223_ Switching to secondary target: G-34 Mercenary. 01226_ U-05 Engineer lays Concrete. 01231_ Acquired 12 matter. 01233_ U-05 Engineer lays Concrete. 01234_ U-05 Engineer destroyed. 01236_ Wheel destroyed. 01239_ T-07 Excavator is excavating. 01244_ Slammed into T-07 Excavator. 01244_ Com. Wheel destroyed. 01245_ Acquired 33 matter. 01246_ Autogun destroyed. 01248_ T-07 Excavator destroyed. 01249_ Acquired 23 matter. 01251_ G-34 Mercenary destroyed. 01251_ Switching to secondary target: G-34 Mercenary. 01252_ Acquired 32 matter. Map ----- +----------------------------------------------------+ | ?????????????????????????????????????????????????? | | ?????????????????????????????????????????????????? | | ????????????????#####????????????????????????????? | | ???????????????## ##???????????????????????????? | | ##?????????????# ####????????????????????????? | | ####?????????# ##???????????????????????? | | #??????##### #???????????????????????? | | ?????## ###### #???????????????????????? | | ?# ????## ##??## #???????????????????????? | | ??# #????# ##?## #???????????????????????? | | ???# ###### ### #???????????????????????? | | ???# ##???????????????????????? | | #### ###????????????????????????? | | # ### ## ## #??????????????????????????? | | ## ### ###### #??????????????????????????? | | ## #?## ##????# #??????????????????????????? | | #?# #??####????## #??????????????????????????? | | ### ##?????????# #??????????????????????????? | | ## #?????????# #??????????????????????????? | | #####?????# #????##????????????????????? | | #????## ##???# ##???????????????????? | | ### #?#### #???? #???????????????????? | | #?# ### #???? #???????????????????? | | " ### ## #??### #????????????????????? | | " ## # ##??#=###???? ####???????????? | | " ##??##@=#### #???????????? | | ##?##|[!%!=%* #???????????? | | ## ##### ####*=*g==*! #???????????? | | #### ##???# ## ==##### #???????????? | | ##??# #????# #;####?????######???????????? | | #???# #????## #####???????????????????????? | | ????# #?????# #####????????????????????????? | | #???# #?????## ##????????????g???????????????? | | ##??# #??????######?????????????????????????????? | | #??# #??????????????????????????????????g??????? | | #??# #?????????????????????g???????g???????????? | | ##??# #?????????????????????????????????????????? | | #???# #?????????????????????????????????????????? | | ????# #?????????????????????????????????????????? | | ????# #?????????????????????????????????????????? | | #???# #?????????????????????????????????????????? | | #???# #?????????????????????????????????????????? | | #???# #?????????????????????????????????????????? | | #???# #?????????????????????????????????????????? | | #???# #####?????????????????????????????????????? | | #???# #?????????????????????????????????????? | | #???# #?????????????????????????????????????? | | #???##### #?????????????????????????????????????? | | #???????# #?????????????????????????????????????? | | #???????# #?????????????????????????????????????? | +----------------------------------------------------+ Best States ------------- Heat Dissipation 25 Energy Generation 10 Energy Capacity 250 Matter Stores 283 Matter Capacity 300 Sight Range 16 Terrain Scan Density 10 Evasion (%) 42 Item Schematics ----------------- None Robot Schematics ------------------ None Fabricated ------------ Nothing Alien Tech Used ----------------- None Achievements -------------- None Challenges ------------ None Game ------ Seed HypervelocityTachyonPurifier Manual? 0 Play Time 00:11:21 Cumulative 703.5 hours Start 2019.11.15 @ 15:03:45 End 2019.11.15 @ 15:19:28 Sessions 1 Manual Loads 0 Difficulty Rogue Special Mode None Game No. 192 Rogue 192 Adventurer 0 Explorer 0 Win Type - Total 33 Types 24/0/2/3/2/1/1 Lore% 96 Gallery% 97 Achievement% 91 Wizard Run 0 Options --------- ASCII 0 Keyboard 1 Movement Numpad Keybinds 0 Fullscreen 1 Font 18/SmallcapsGlow Map View 76x50 Tactical HUD 1 Map Filters NONE Filters NONE Steam 1 RUN: ba69989e-8812-4fd9-a5f0-a07cb4132a53